fUST/lending_fUST_20251126
["ID","MTS","AMOUNT","RATE_DAILY","PERIOD"]
[394901481,1764099068228,-500.0,0.00012054,2]
[394901482,1764099068238,-500.0,0.00012054,2]
[394901483,1764099068247,-500.0,0.00012054,2]
[394901484,1764099068257,-528.7,0.00012054,2]
[394901485,1764099068267,-640.24,0.00012054,2]
[394901486,1764099068276,-500.0,0.00012054,2]
[394901487,1764099068285,-13460.7,0.00012054,2]
[394901488,1764099068294,-1389.23,0.00012054,2]
[394901489,1764099068305,-500.0,0.00012054,2]
[394901490,1764099068314,-500.0,0.00012054,2]
[394901491,1764099068324,-500.0,0.00012054,2]
[394901492,1764099068334,-500.0,0.00012054,2]
[394901493,1764099068343,-3213.91,0.00012054,2]
[394901494,1764099068352,-592.53,0.00012054,2]
[394901495,1764099068361,-1263.83,0.00012054,2]
[394901496,1764099068371,-3463.96,0.00012054,2]
[394901497,1764099068380,-500.0,0.00012054,2]
[394901498,1764099068390,-500.0,0.00012054,2]
[394901499,1764099068400,-500.0,0.00012054,2]
[394901500,1764099068409,-2311.99,0.00012054,2]
[394901501,1764099068419,-500.0,0.00012054,2]
[394901502,1764099068428,-724.7,0.00012054,2]
[394901503,1764099068439,-500.0,0.00012054,2]
[394901504,1764099068448,-500.0,0.00012054,2]
[394901505,1764099068458,-1300.95,0.00012054,2]
[394901506,1764099068467,-500.0,0.00012054,2]
[394901507,1764099068477,-517.92604491,0.00012068,2]
[394901508,1764099068487,-1118.32990357,0.00012068,2]
[394901509,1764099068496,-1587.68920364,0.00012068,2]
[394901510,1764099068507,-3793.13734927,0.00012088,2]
[394901511,1764099068518,-1421.8796292,0.00012133,3]
[394901512,1764099068529,-160.0,0.00012151,3]
[394901513,1764099068539,-2891.91516171,0.00012177,2]
[394901514,1764099068548,-194.72792766,0.00012192,2]
[394901515,1764099068558,-2448.8266119,0.00012244,2]
[394901516,1764099068568,-390.16347456,0.00012254,2]
[394901517,1764099068578,-5162.88139206,0.00012265,2]
[394901518,1764099068588,-500.0,0.00012328,2]
[394901519,1764099068597,-500.0,0.00012328,2]
[394901520,1764099068607,-500.0,0.00012328,2]
[394901521,1764099068616,-500.0,0.00012328,2]
[394901522,1764099068626,-500.0,0.00012328,2]
[394901523,1764099068636,-500.0,0.00012328,2]
[394901524,1764099068650,-500.0,0.00012328,2]
[394901525,1764099068660,-791.8,0.00012328,2]
[394901526,1764099068670,-500.0,0.00012328,2]
[394901527,1764099068679,-500.0,0.00012328,2]
[394901528,1764099068689,-500.0,0.00012328,2]
[394901529,1764099068699,-500.0,0.00012328,2]
[394901530,1764099068709,-956.18,0.00012328,2]
[394901531,1764099068718,-500.0,0.00012328,2]
[394901532,1764099068730,-500.0,0.00012328,2]
[394901533,1764099068740,-500.0,0.00012328,2]
[394901534,1764099068750,-500.0,0.00012328,2]
[394901535,1764099068760,-500.0,0.00012328,2]
[394901536,1764099068769,-500.0,0.00012328,2]
[394901537,1764099068780,-1109.54,0.00012328,2]
[394901538,1764099068790,-500.0,0.00012328,2]
[394901539,1764099068799,-625.7,0.00012328,2]
[394901540,1764099068810,-500.0,0.00012328,2]
[394901541,1764099068819,-519.8,0.00012328,2]
[394901542,1764099068829,-755.22,0.00012328,2]
[394901543,1764099068839,-500.0,0.00012328,2]
[394901544,1764099068849,-279.30540053,0.00012328,2]
[394901545,1764099068858,-551.63,0.00012328,2]
[394901546,1764099068868,-500.0,0.00012328,2]
[394901547,1764099068878,-879.57,0.00012328,2]
[394901548,1764099068887,-500.0,0.00012328,2]
[394901549,1764099068897,-217.29448463,0.00012328,2]
[394901550,1764099068906,-807.9,0.00012328,2]
[394901551,1764099068915,-500.0,0.00012328,2]
[394901552,1764099068925,-1197.75,0.00012328,2]
[394901553,1764099068934,-500.0,0.00012328,2]
[394901554,1764099068944,-500.0,0.00012328,2]
[394901555,1764099068954,-500.0,0.00012328,2]
[394901556,1764099068964,-1399.99,0.00012328,2]
[394901557,1764099068975,-500.0,0.00012328,2]
[394901558,1764099068984,-500.0,0.00012328,2]
[394901559,1764099068994,-500.0,0.00012328,2]
[394901560,1764099069004,-514.12,0.00012328,2]
[394901561,1764099069014,-516.17,0.00012328,2]
[394901562,1764099069023,-500.0,0.00012328,2]
[394901563,1764099069033,-500.0,0.00012328,2]
[394901564,1764099069044,-266.3896946,0.00012328,2]
[394901565,1764099069054,-569.59,0.00012328,2]
[394901566,1764099069064,-2710.36,0.00012328,2]
[394901567,1764099069073,-635.52,0.00012328,2]
[394901568,1764099069083,-500.0,0.00012328,2]
[394901569,1764099069092,-500.0,0.00012328,2]
[394901570,1764099069101,-1310.34,0.00012328,2]
[394901571,1764099069112,-500.0,0.00012328,2]
[394901572,1764099069122,-717.97,0.00012328,2]
[394901573,1764099069131,-500.0,0.00012328,2]
[394901574,1764099069141,-627.87,0.00012328,2]
[394901575,1764099069150,-500.0,0.00012328,2]
[394901576,1764099069161,-500.0,0.00012328,2]
[394901577,1764099069170,-500.0,0.00012328,2]
[394901578,1764099069180,-399.93106184,0.00012328,2]
[394901579,1764099069192,-641.92,0.00012328,2]
[394901580,1764099069202,-1134.87,0.00012328,2]
[394901581,1764099069212,-500.0,0.00012328,2]
[394901582,1764099069225,-500.0,0.00012328,2]
[394901583,1764099069236,-725.87,0.00012328,2]
[394901584,1764099069246,-500.0,0.00012328,2]
[394901585,1764099069256,-563.69201408,0.00012328,2]
[394901586,1764099069266,-519.97,0.00012328,2]
[394901587,1764099069275,-500.0,0.00012328,2]
[394901588,1764099069284,-1448.08,0.00012328,2]
[394901589,1764099069294,-500.0,0.00012328,2]
[394901590,1764099069303,-500.0,0.00012328,2]
[394901591,1764099069312,-201.78372955,0.00012328,2]
[394901592,1764099069322,-500.0,0.00012328,2]
[394901593,1764099069331,-1001.03,0.00012328,2]
[394901594,1764099069340,-1307.59,0.00012328,2]
[394901595,1764099069349,-500.0,0.00012328,2]
[394901596,1764099069358,-2337.7,0.00012328,2]
[394901597,1764099069367,-523.80581546,0.00012328,2]
[394901598,1764099069377,-500.0,0.00012328,2]
[394901599,1764099069385,-500.0,0.00012328,2]
[394901600,1764099069394,-211.98939748,0.00012328,2]
[394901601,1764099069403,-500.0,0.00012328,2]
[394901602,1764099069412,-500.0,0.00012328,2]
[394901603,1764099069422,-1601.49,0.00012328,2]
[394901604,1764099069431,-500.0,0.00012328,2]
[394901605,1764099069440,-500.0,0.00012328,2]
[394901606,1764099069449,-500.0,0.00012328,2]
[394901607,1764099069458,-613.35,0.00012328,2]
[394901608,1764099069467,-500.0,0.00012328,2]
[394901609,1764099069477,-500.0,0.00012328,2]
[394901610,1764099069486,-500.0,0.00012328,2]
[394901611,1764099069495,-500.0,0.00012328,2]
[394901612,1764099069505,-500.0,0.00012328,2]
[394901613,1764099069515,-500.0,0.00012328,2]
[394901614,1764099069526,-500.0,0.00012328,2]
[394901615,1764099069535,-500.0,0.00012328,2]
[394901616,1764099069544,-500.0,0.00012328,2]
[394901617,1764099069553,-500.0,0.00012328,2]
[394901618,1764099069562,-500.0,0.00012328,2]
[394901619,1764099069571,-1698.99,0.00012328,2]
[394901620,1764099069581,-500.0,0.00012328,2]
[394901621,1764099069591,-500.0,0.00012328,2]
[394901622,1764099069599,-500.0,0.00012328,2]
[394901623,1764099069609,-754.51,0.00012328,2]
[394901624,1764099069618,-500.0,0.00012328,2]
[394901625,1764099069627,-1760.11,0.00012328,2]
[394901626,1764099069636,-500.0,0.00012328,2]
[394901627,1764099069645,-500.0,0.00012328,2]
[394901628,1764099069654,-527.04,0.00012328,2]
[394901629,1764099069663,-500.0,0.00012328,2]
[394901630,1764099069677,-500.0,0.00012328,2]
[394901631,1764099069686,-3246.46,0.00012328,2]
[394901632,1764099069696,-558.57918439,0.00012328,2]
[394901633,1764099069705,-500.0,0.00012328,2]
[394901634,1764099069714,-500.0,0.00012328,2]
[394901635,1764099069725,-500.0,0.00012328,2]
[394901636,1764099069734,-1000.0,0.00012328,2]
[394901637,1764099069743,-1140.97,0.00012328,2]
[394901638,1764099069753,-500.0,0.00012328,2]
[394901639,1764099069762,-1675.45,0.00012328,2]
[394901640,1764099069771,-500.0,0.00012328,2]
[394901641,1764099069780,-500.0,0.00012328,2]
[394901642,1764099069789,-618.33,0.00012328,2]
[394901643,1764099069798,-1457.17,0.00012328,2]
[394901644,1764099069807,-500.0,0.00012328,2]
[394901645,1764099069816,-712.52,0.00012328,2]
[394901646,1764099069826,-530.53,0.00012328,2]
[394901647,1764099069835,-1339.37,0.00012328,2]
[394901648,1764099069844,-633.08,0.00012328,2]
[394901649,1764099069854,-500.0,0.00012328,2]
[394901650,1764099069863,-8328.75,0.00012328,2]
[394901651,1764099069874,-500.0,0.00012328,2]
[394901652,1764099069883,-500.0,0.00012328,2]
[394901653,1764099069892,-730.49,0.00012328,2]
[394901654,1764099069902,-891.65,0.00012328,2]
[394901655,1764099069911,-500.0,0.00012328,2]
[394901656,1764099069921,-500.0,0.00012328,2]
[394901657,1764099069931,-500.0,0.00012328,2]
[394901658,1764099069941,-500.0,0.00012328,2]
[394901659,1764099069950,-500.0,0.00012328,2]
[394901660,1764099069959,-500.0,0.00012328,2]
[394901661,1764099069969,-500.0,0.00012328,2]
[394901662,1764099069979,-1121.47,0.00012328,2]
[394901663,1764099069988,-500.0,0.00012328,2]
[394901664,1764099069998,-724.21,0.00012328,2]
[394901665,1764099070007,-500.0,0.00012328,2]
[394901666,1764099070017,-500.0,0.00012328,2]
[394901667,1764099070027,-500.0,0.00012328,2]
[394901668,1764099070036,-775.69,0.00012328,2]
[394901669,1764099070045,-500.0,0.00012328,2]
[394901670,1764099070054,-2205.5,0.00012328,2]
[394901671,1764099070063,-1088.06,0.00012328,2]
[394901672,1764099070191,-2339.45,0.00012328,2]
[394901673,1764099070200,-517.68,0.00012328,2]
[394901674,1764099070209,-1826.55,0.00012328,2]
[394901675,1764099070219,-500.0,0.00012328,2]
[394901676,1764099070229,-1943.81,0.00012328,2]
[394901677,1764099070239,-751.94,0.00012328,2]
[394901678,1764099070248,-904.29,0.00012328,2]
[394901679,1764099070258,-1872.97,0.00012328,2]
[394901680,1764099070267,-774.88,0.00012328,2]
[394901681,1764099070276,-615.77,0.00012328,2]
[394901682,1764099070285,-500.0,0.00012328,2]
[394901683,1764099070294,-368.55851635,0.00012328,2]
[394901684,1764099070303,-500.0,0.00012328,2]
[394901685,1764099070313,-500.0,0.00012328,2]
[394901686,1764099070322,-530.76,0.00012328,2]
[394901687,1764099070331,-5472.84,0.00012328,2]
[394901688,1764099070341,-500.0,0.00012328,2]
[394901689,1764099070350,-591.77,0.00012328,2]
[394901690,1764099070360,-500.0,0.00012328,2]
[394901691,1764099070370,-1265.76,0.00012328,2]
[394901692,1764099070379,-500.0,0.00012328,2]
[394901693,1764099070389,-500.0,0.00012328,2]
[394901694,1764099070398,-500.0,0.00012328,2]
[394901695,1764099070408,-537.16,0.00012328,2]
[394901696,1764099070418,-2955.61,0.00012328,2]
[394901697,1764099070428,-2185.47,0.00012328,2]
[394901698,1764099070438,-500.0,0.00012328,2]
[394901699,1764099070447,-1746.85,0.00012328,2]
[394901700,1764099070456,-500.0,0.00012328,2]
[394901701,1764099070467,-1639.14,0.00012328,2]
[394901702,1764099070479,-2881.47,0.00012328,2]
[394901703,1764099070488,-1111.96,0.00012328,2]
[394901704,1764099070498,-2623.36,0.00012328,2]
[394901705,1764099070507,-500.0,0.00012328,2]
[394901706,1764099070516,-4694.9,0.00012328,2]
[394901707,1764099070538,-500.0,0.00012328,2]
[394901708,1764099070548,-500.0,0.00012328,2]
[394901709,1764099070558,-500.0,0.00012328,2]
[394901710,1764099070567,-1931.47,0.00012328,2]
[394901711,1764099070578,-2141.71,0.00012328,2]
[394901712,1764099070588,-1477.84,0.00012328,2]
[394901713,1764099070597,-533.77,0.00012328,2]
[394901714,1764099070607,-500.0,0.00012328,2]
[394901715,1764099070616,-500.0,0.00012328,2]
[394901716,1764099070625,-500.0,0.00012328,2]
[394901717,1764099070635,-3516.57,0.00012328,2]
[394901718,1764099070644,-1823.41,0.00012328,2]
[394901719,1764099070654,-500.0,0.00012328,2]
[394901720,1764099070664,-6281.6,0.00012328,2]
[394901721,1764099070673,-923.25,0.00012328,2]
[394901722,1764099070683,-500.0,0.00012328,2]
[394901723,1764099070692,-552.04,0.00012328,2]
[394901724,1764099070702,-287.73984164,0.00012328,2]
[394901725,1764099070711,-500.0,0.00012328,2]
[394901726,1764099070720,-2792.1,0.00012328,2]
[394901727,1764099070733,-1332.61,0.00012328,2]
[394901728,1764099070742,-2197.66,0.00012328,2]
[394901729,1764099070752,-500.0,0.00012328,2]
[394901730,1764099070763,-3135.39,0.00012328,2]
[394901731,1764099070772,-659.4,0.00012328,2]
[394901732,1764099070781,-1012.98,0.00012328,2]
[394901733,1764099070791,-1202.03,0.00012328,2]
[394901734,1764099070801,-853.22,0.00012328,2]
[394901735,1764099070810,-1513.66,0.00012328,2]
[394901736,1764099070820,-500.0,0.00012328,2]
[394901737,1764099070830,-529.49,0.00012328,2]
[394901738,1764099070839,-501.36,0.00012328,2]
[394901739,1764099070849,-500.0,0.00012328,2]
[394901740,1764099070858,-500.0,0.00012328,2]
[394901741,1764099070868,-500.0,0.00012328,2]
[394901742,1764099070877,-3068.81,0.00012328,2]
[394901743,1764099070887,-500.0,0.00012328,2]
[394901744,1764099070897,-1124.66,0.00012328,2]
[394901745,1764099070907,-500.0,0.00012328,2]
[394901746,1764099070917,-1462.56,0.00012328,2]
[394901747,1764099070926,-500.0,0.00012328,2]
[394901748,1764099070936,-500.0,0.00012328,2]
[394901749,1764099070946,-2904.67,0.00012328,2]
[394901750,1764099070955,-5465.24,0.00012328,2]
[394901751,1764099070966,-517.38,0.00012328,2]
[394901752,1764099070977,-595.9,0.00012328,2]
[394901753,1764099070987,-507.05,0.00012328,2]
[394901754,1764099070996,-1034.01,0.00012328,2]
[394901755,1764099071006,-2831.69,0.00012328,2]
[394901756,1764099071015,-753.73,0.00012328,2]
[394901757,1764099071024,-500.0,0.00012328,2]
[394901758,1764099071034,-500.0,0.00012328,2]
[394901759,1764099071043,-500.0,0.00012328,2]
[394901760,1764099071052,-500.0,0.00012328,2]
[394901761,1764099071062,-528.7,0.00012328,2]
[394901762,1764099071071,-640.24,0.00012328,2]
[394901763,1764099071079,-347.97676151,0.00012328,2]
[394901764,1764099071089,-13460.7,0.00012328,2]
[394901765,1764099071098,-1389.23,0.00012328,2]
[394901766,1764099071109,-500.0,0.00012328,2]
[394901767,1764099071120,-500.0,0.00012328,2]
[394901768,1764099071130,-500.0,0.00012328,2]
[394901769,1764099071139,-500.0,0.00012328,2]
[394901770,1764099071148,-3213.91,0.00012328,2]
[394901771,1764099071157,-592.53,0.00012328,2]
[394901772,1764099071167,-1263.83,0.00012328,2]
[394901773,1764099071176,-3463.96,0.00012328,2]
[394901774,1764099071187,-500.0,0.00012328,2]
[394901775,1764099071196,-500.0,0.00012328,2]
[394901776,1764099071205,-500.0,0.00012328,2]
[394901777,1764099071215,-2311.99,0.00012328,2]
[394901778,1764099071225,-500.0,0.00012328,2]
[394901779,1764099071234,-724.7,0.00012328,2]
[394901780,1764099071244,-559.75434363,0.00012328,2]
[394901781,1764099071253,-500.0,0.00012328,2]
[394901782,1764099071263,-1300.95,0.00012328,2]
[394901783,1764099071272,-500.0,0.00012328,2]
[394901784,1764099071281,-2523.82,0.00012329,2]
[394901785,1764099071291,-3105.73,0.00012329,2]
[394901786,1764099071300,-2588.11,0.00012329,2]
[394901787,1764099071310,-2156.75,0.00012329,2]
[394901788,1764099071320,-1797.3,0.00012329,2]
[394901789,1764099071330,-1497.75,0.00012329,2]
[394901790,1764099071339,-1248.12,0.00012329,2]
[394901791,1764099071348,-1040.1,0.00012329,2]
[394901792,1764099071357,-866.75,0.00012329,2]
[394901793,1764099071366,-722.29,0.00012329,2]
[394901794,1764099071375,-601.91,0.00012329,2]
[394901795,1764099071384,-501.59,0.00012329,2]
[394901796,1764099071394,-417.99,0.00012329,2]
[394901797,1764099071403,-348.33,0.00012329,2]
[394901798,1764099071412,-290.27,0.00012329,2]
[394901799,1764099071421,-241.9,0.00012329,2]
[394901800,1764099071430,-201.58,0.00012329,2]
[394901801,1764099071439,-167.98,0.00012329,2]
[394901802,1764099071449,-839.94,0.00012329,2]
[394901803,1764099071458,-1500.0,0.00012368,2]
[394901804,1764099071467,-1500.0,0.00012368,2]
[394901805,1764099071479,-500.0,0.00012368,2]
[394901806,1764099071488,-1500.0,0.00012368,2]
[394901807,1764099071497,-500.0,0.00012368,2]
[394901808,1764099071507,-4164.35783286,0.00012421,2]
[394901809,1764099071516,-742.09282928,0.00012433,2]
[394901810,1764099071525,-873.84166662,0.00012433,2]
[394901811,1764099071535,-236.21651867,0.00012433,2]
[394901812,1764099071544,-6743.35528759,0.00012443,2]
[394901813,1764099071553,-2527.78600746,0.00012471,3]
[394901814,1764099071562,-1074.57739789,0.00012496,2]
[394901815,1764099071571,-9766.88588787,0.000125,2]
[394901816,1764099071580,-160.0,0.00012521,4]
[394901817,1764099071590,-500.0,0.00012602,2]
[394901818,1764099071599,-500.0,0.00012602,2]
[394901819,1764099071608,-500.0,0.00012602,2]
[394901820,1764099071617,-500.0,0.00012602,2]
[394901821,1764099071626,-500.0,0.00012602,2]
[394901822,1764099071635,-587.29948274,0.00012602,2]
[394901823,1764099071644,-500.0,0.00012602,2]
[394901824,1764099071654,-791.8,0.00012602,2]
[394901825,1764099071663,-500.0,0.00012602,2]
[394901826,1764099071672,-500.0,0.00012602,2]
[394901827,1764099071681,-500.0,0.00012602,2]
[394901828,1764099071690,-500.0,0.00012602,2]
[394901829,1764099071700,-956.18,0.00012602,2]
[394901830,1764099071709,-500.0,0.00012602,2]
[394901831,1764099071718,-500.0,0.00012602,2]
[394901832,1764099071728,-500.0,0.00012602,2]
[394901833,1764099071737,-500.0,0.00012602,2]
[394901834,1764099071746,-500.0,0.00012602,2]
[394901835,1764099071755,-500.0,0.00012602,2]
[394901836,1764099071764,-1109.54,0.00012602,2]
[394901837,1764099071773,-500.0,0.00012602,2]
[394901838,1764099071783,-625.7,0.00012602,2]
[394901839,1764099071792,-500.0,0.00012602,2]
[394901840,1764099071801,-519.8,0.00012602,2]
[394901841,1764099071810,-755.22,0.00012602,2]
[394901842,1764099071819,-500.0,0.00012602,2]
[394901843,1764099071828,-551.63,0.00012602,2]
[394901844,1764099071837,-555.61219848,0.00012602,2]
[394901845,1764099071846,-879.57,0.00012602,2]
[394901846,1764099071855,-583.27288625,0.00012602,2]
[394901847,1764099071864,-807.9,0.00012602,2]
[394901848,1764099071874,-500.0,0.00012602,2]
[394901849,1764099071883,-1197.75,0.00012602,2]
[394901850,1764099071892,-500.0,0.00012602,2]
[394901851,1764099071901,-500.0,0.00012602,2]
[394901852,1764099071911,-500.0,0.00012602,2]
[394901853,1764099071920,-1399.99,0.00012602,2]
[394901854,1764099071929,-500.0,0.00012602,2]
[394901855,1764099071938,-500.0,0.00012602,2]
[394901856,1764099071947,-500.0,0.00012602,2]
[394901857,1764099071956,-514.12,0.00012602,2]
[394901858,1764099071965,-516.17,0.00012602,2]
[394901859,1764099071977,-332.84146039,0.00012602,2]
[394901860,1764099071986,-500.0,0.00012602,2]
[394901861,1764099071995,-569.59,0.00012602,2]
[394901862,1764099072004,-2710.36,0.00012602,2]
[394901863,1764099072013,-635.52,0.00012602,2]
[394901864,1764099072021,-500.0,0.00012602,2]
[394901865,1764099072030,-470.64111537,0.00012602,2]
[394901866,1764099072039,-1310.34,0.00012602,2]
[394901867,1764099072047,-500.0,0.00012602,2]
[394901868,1764099072057,-717.97,0.00012602,2]
[394901869,1764099072065,-500.0,0.00012602,2]
[394901870,1764099072075,-627.87,0.00012602,2]
[394901871,1764099072084,-500.0,0.00012602,2]
[394901872,1764099072093,-500.0,0.00012602,2]
[394901873,1764099072101,-500.0,0.00012602,2]
[394901874,1764099072110,-641.92,0.00012602,2]
[394901875,1764099072122,-1134.87,0.00012602,2]
[394901876,1764099072131,-500.0,0.00012602,2]
[394901877,1764099072140,-500.0,0.00012602,2]
[394901878,1764099072149,-725.87,0.00012602,2]
[394901879,1764099072160,-500.0,0.00012602,2]
[394901880,1764099072169,-519.97,0.00012602,2]
[394901881,1764099072178,-500.0,0.00012602,2]
[394901882,1764099072187,-1448.08,0.00012602,2]
[394901883,1764099072197,-500.0,0.00012602,2]
[394901884,1764099072206,-500.0,0.00012602,2]
[394901885,1764099072216,-500.0,0.00012602,2]
[394901886,1764099072226,-1001.03,0.00012602,2]
[394901887,1764099072235,-1307.59,0.00012602,2]
[394901888,1764099072244,-500.0,0.00012602,2]
[394901889,1764099072253,-2337.7,0.00012602,2]
[394901890,1764099072262,-500.0,0.00012602,2]
[394901891,1764099072271,-500.0,0.00012602,2]
[394901892,1764099072280,-500.0,0.00012602,2]
[394901893,1764099072289,-500.0,0.00012602,2]
[394901894,1764099072298,-1601.49,0.00012602,2]
[394901895,1764099072308,-500.0,0.00012602,2]
[394901896,1764099072317,-500.0,0.00012602,2]
[394901897,1764099072326,-500.0,0.00012602,2]
[394901898,1764099072447,-613.35,0.00012602,2]
[394901899,1764099072457,-500.0,0.00012602,2]
[394901900,1764099072466,-155.98473853,0.00012602,2]
[394901901,1764099072478,-500.0,0.00012602,2]
[394901902,1764099072487,-500.0,0.00012602,2]
[394901903,1764099072496,-500.0,0.00012602,2]
[394901904,1764099072506,-500.0,0.00012602,2]
[394901905,1764099072515,-500.0,0.00012602,2]
[394901906,1764099072526,-500.0,0.00012602,2]
[394901907,1764099072536,-500.0,0.00012602,2]
[394901908,1764099072546,-500.0,0.00012602,2]
[394901909,1764099072555,-500.0,0.00012602,2]
[394901910,1764099072565,-1698.99,0.00012602,2]
[394901911,1764099072574,-500.0,0.00012602,2]
[394901912,1764099072584,-500.0,0.00012602,2]
[394901913,1764099072593,-598.2854653,0.00012602,2]
[394901914,1764099072602,-754.51,0.00012602,2]
[394901915,1764099072611,-500.0,0.00012602,2]
[394901916,1764099072620,-1760.11,0.00012602,2]
[394901917,1764099072629,-511.19443301,0.00012602,2]
[394901918,1764099072639,-500.0,0.00012602,2]
[394901919,1764099072648,-527.04,0.00012602,2]
[394901920,1764099072657,-416.08551626,0.00012602,2]
[394901921,1764099072666,-259.11842776,0.00012602,2]
[394901922,1764099072675,-3246.46,0.00012602,2]
[394901923,1764099072684,-500.0,0.00012602,2]
[394901924,1764099072693,-500.0,0.00012602,2]
[394901925,1764099072702,-500.0,0.00012602,2]
[394901926,1764099072711,-1000.0,0.00012602,2]
[394901927,1764099072720,-1119.28304035,0.00012602,2]
[394901928,1764099371540,1981.25,0.0002,30]
[394901929,1764099551798,7216.11036962,0.00019,120]
[394901930,1764099894283,2638.60702343,0.0002,30]
[394901931,1764099944965,412.30279623,6.958e-05,2]
[394901932,1764100001698,565.43546982,6.958e-05,2]
[394901933,1764100017442,22.26173395,6.958e-05,2]
[394902018,1764100238561,-2453.29089707,6.653e-05,2]
[394902019,1764100238571,-1663.92781864,6.72e-05,2]
[394902020,1764100238583,-789.36307843,6.72e-05,2]
[394902021,1764100238592,-2453.29089707,6.788e-05,2]
[394902022,1764100238601,-208.0,6.788e-05,2]
[394902023,1764100238611,-258.63969984,6.838e-05,2]
[394902024,1764100238620,-353.43546982,7.534e-05,2]
[394902025,1764100238630,-160.0,7.54e-05,2]
[394902026,1764100238639,-300.0,7.648e-05,2]
[394902027,1764100238648,-1200.0,7.648e-05,2]
[394902028,1764100238658,-990.0,7.649e-05,2]
[394902029,1764100238667,-759.866,7.649e-05,2]
[394902030,1764100238675,-2152.0,7.649e-05,2]
[394902031,1764100238684,-300.0,7.773e-05,2]
[394902032,1764100238694,-300.0,7.773e-05,2]
[394902033,1764100238703,-300.0,7.773e-05,2]
[394902034,1764100238712,-300.0,7.773e-05,2]
[394902035,1764100238722,-300.0,7.773e-05,2]
[394902036,1764100238731,-300.0,7.773e-05,2]
[394902037,1764100238741,-300.0,7.773e-05,2]
[394902038,1764100238751,-300.0,7.773e-05,2]
[394902039,1764100238760,-300.0,7.773e-05,2]
[394902040,1764100238771,-300.0,7.773e-05,2]
[394902041,1764100238781,-300.0,7.773e-05,2]
[394902042,1764100238790,-300.0,7.773e-05,2]
[394902043,1764100238800,-300.0,7.773e-05,2]
[394902044,1764100238810,-300.0,7.773e-05,2]
[394902045,1764100238820,-300.0,7.773e-05,2]
[394902046,1764100238829,-600.0,7.927e-05,2]
[394902047,1764100238838,-783.14429289,8.288e-05,2]
[394902048,1764100238847,-300.0,8.413e-05,2]
[394902049,1764100238857,-1060.0,8.413e-05,2]
[394902050,1764100238866,-1009.00602126,8.677e-05,2]
[394902051,1764100238876,-720.0,8.72e-05,2]
[394902052,1764100238885,-783.14429289,8.816e-05,2]
[394902053,1764100238895,-305.19484581,8.838e-05,2]
[394902054,1764100238904,-250.0,8.969e-05,2]
[394902055,1764100238913,-591.15571184,9.151e-05,2]
[394902056,1764100238922,-500.0,9.151e-05,2]
[394902057,1764100238931,-640.75443349,9.151e-05,2]
[394902058,1764100238942,-500.0,9.151e-05,2]
[394902059,1764100238952,-500.0,9.151e-05,2]
[394902060,1764100238961,-328.42701149,9.151e-05,2]
[394902061,1764100238970,-500.0,9.151e-05,2]
[394902062,1764100238979,-30829.5250861,9.152e-05,2]
[394902063,1764100238988,-783.14429289,9.344e-05,2]
[394902064,1764100239003,-864.0,9.592e-05,2]